bitfinex/quotes_SOLUSD_20250419
["timestamp","ask_amount","ask_price","bid_price","bid_amount"]
[1745026478383,19.14284376,134.99,133.81,0.2212176]
[1745026478771,19.14284376,134.99,133.82,9.31974263]
[1745026480078,9.57142176,134.99,133.82,9.31974263]
[1745026480380,28.71426476,134.99,133.82,9.31974263]
[1745026480775,9.57142176,134.99,133.82,9.31974263]
[1745026481083,29.32429476,134.99,133.82,29.07261563]
[1745026484085,9.57142176,134.99,133.82,29.07261563]
[1745026484571,31.84396376,134.99,133.82,29.07261563]
[1745026484882,9.57142176,134.99,133.82,29.07261563]
[1745026485985,19.14284276,134.99,133.82,29.07261563]
[1745026486286,9.57142176,134.99,133.82,29.07261563]
[1745026486786,19.14284376,134.99,133.82,29.07261563]
[1745026487084,9.57142176,134.99,133.82,29.07261563]
[1745026487385,28.71426576,134.99,133.82,29.07261563]
[1745026488086,9.57142176,134.99,133.82,29.07261563]
[1745026488387,31.84561676,134.99,133.82,29.07261563]
[1745026489087,9.57142176,134.99,133.82,29.07261563]
[1745026489491,19.14284376,134.99,133.82,29.07261563]
[1745026490190,9.57142176,134.99,133.82,29.07261563]
[1745026490488,28.71426476,134.99,133.82,29.07261563]
[1745026491087,9.57142176,134.99,133.82,29.07261563]
[1745026491893,31.84561676,134.99,133.82,29.07261563]
[1745026492188,9.57142176,134.99,133.82,29.07261563]
[1745026493093,19.14284376,134.99,133.82,29.07261563]
[1745026493392,9.57142176,134.99,133.82,29.07261563]
[1745026494192,19.14284376,134.99,133.82,29.07261563]
[1745026502399,19.14284376,134.99,133.82,19.752873]
[1745026502592,19.14284376,134.99,133.83,9.31974263]
[1745026503901,19.14284376,134.99,133.84,19.142844]
[1745026504197,19.14284376,134.99,133.85,9.31974263]
[1745026504799,19.14284376,134.99,133.85,28.46258663]
[1745026505102,19.14284376,134.99,133.85,9.31974263]
[1745026505399,19.14284376,134.99,133.85,28.46258663]
[1745026506099,19.14284376,134.99,133.85,9.31974263]
[1745026506703,19.14284376,134.99,133.85,28.46258663]
[1745026508102,9.57142176,134.99,133.85,28.46258663]
[1745026508400,28.71426576,134.99,133.85,28.46258663]
[1745026508800,9.57142176,134.99,133.85,28.46258663]
[1745026509100,31.83239476,134.99,133.85,28.46258663]
[1745026509696,9.57142176,134.99,133.85,28.46258663]
[1745026511703,19.14284376,134.99,133.85,28.46258663]
[1745026512007,9.57142176,134.99,133.85,28.46258663]
[1745026512187,9.57142176,134.99,133.85,9.31974263]
[1745026512383,28.71426576,134.99,133.85,18.89116463]
[1745026513006,9.57142176,134.99,133.85,18.89116463]
[1745026513305,28.46258576,134.99,133.85,18.89116463]
[1745026516199,9.57142176,134.99,133.85,9.31974263]
[1745026516710,18.89116376,134.99,133.85,18.63948563]
[1745026520122,9.57142176,134.99,133.85,9.31974263]
[1745026520315,9.57142176,134.99,133.76,0.063]
[1745026520506,28.21090776,134.99,133.77,9.31974263]
[1745026520706,28.21090776,134.99,133.77,29.86886749]
[1745026520900,9.57142176,134.99,133.77,29.86886749]
[1745026521408,19.14284376,134.99,133.78,9.571422]
[1745026521610,19.14284376,134.99,133.79,9.31974263]
[1745026521811,9.57142176,134.99,133.79,9.31974263]
[1745026522212,28.71426476,134.99,133.79,18.89116463]
[1745026524225,9.57142176,134.99,133.79,18.89116463]
[1745026524521,30.12054676,134.99,133.79,18.89116463]
[1745026524823,9.57142176,134.99,133.79,18.89116463]
[1745026525621,19.14284376,134.99,133.79,18.89116463]
[1745026525923,9.57142176,134.99,133.79,18.89116463]
[1745026526828,19.14284376,134.99,133.79,18.89116463]
[1745026527123,9.57142176,134.99,133.79,18.89116463]
[1745026528317,19.14284276,134.99,133.79,18.89116463]
[1745026529530,9.57142176,134.99,133.79,18.89116463]
[1745026530026,19.14284376,134.99,133.79,18.89116463]
[1745026530529,9.57142176,134.99,133.79,18.89116463]
[1745026530830,28.71426576,134.99,133.79,18.89116463]
[1745026531528,9.57142176,134.99,133.79,18.89116463]
[1745026532133,30.12054676,134.99,133.79,18.89116463]
[1745026532429,9.57142176,134.99,133.79,18.89116463]
[1745026533028,19.14284376,134.99,133.79,18.89116463]
[1745026534031,9.57142176,134.99,133.79,18.89116463]
[1745026534333,28.71426576,134.99,133.79,18.89116463]
[1745026534832,9.57142176,134.99,133.79,18.89116463]
[1745026535824,19.14284376,134.99,133.79,18.89116463]
[1745026536131,9.57142176,134.99,133.79,18.89116463]
[1745026537231,19.14284376,134.99,133.79,18.89116463]
[1745026540136,9.57142176,134.99,133.79,18.89116463]
[1745026540933,19.14284376,134.99,133.79,18.89116463]
[1745026544138,9.57142176,134.99,133.79,18.89116463]
[1745026545134,19.14284376,134.99,133.79,18.89116463]
[1745026545434,9.57142176,134.99,133.79,18.89116463]
[1745026546431,28.46258576,134.99,133.79,18.89116463]
[1745026546737,9.57142176,134.99,133.79,18.89116463]
[1745026548236,19.14284376,134.99,133.79,18.89116463]
[1745026552141,9.57142176,134.99,133.79,18.89116463]
[1745026553038,19.14284276,134.99,133.79,18.89116463]
[1745026553241,9.57142176,134.99,133.79,18.89116463]
[1745026553539,28.46258676,134.99,133.79,18.89116463]
[1745026553844,9.57142176,134.99,133.79,18.89116463]
[1745026554141,28.46258676,134.99,133.79,18.89116463]
[1745026554940,9.57142176,134.99,133.79,18.89116463]
[1745026555241,28.46258676,134.99,133.79,18.89116463]
[1745026555840,9.57142176,134.99,133.79,18.89116463]
[1745026556644,28.46258576,134.99,133.79,18.89116463]
[1745026556941,9.57142176,134.99,133.79,18.89116463]
[1745026557241,28.46258676,134.99,133.79,18.89116463]
[1745026558042,9.57142176,134.99,133.79,18.89116463]
[1745026558444,19.14284276,134.99,133.79,18.89116463]
[1745026560148,9.57142176,134.99,133.79,18.89116463]
[1745026560444,28.46258576,134.99,133.79,18.89116463]
[1745026564152,9.57142176,134.99,133.79,18.89116463]
[1745026564948,19.14284376,134.99,133.79,18.89116463]
[1745026570059,19.14284376,134.99,133.79,9.571422]
[1745026570354,19.14284376,134.99,133.8,9.31974263]
[1745026570550,19.14284376,134.99,133.8,29.29531992]
[1745026572155,9.57142176,134.99,133.8,29.29531992]
[1745026572454,28.71426576,134.99,133.8,29.29531992]
[1745026572858,9.57142176,134.99,133.8,29.29531992]
[1745026573038,31.84065676,134.99,133.8,29.29531992]
[1745026573756,9.57142176,134.99,133.8,29.29531992]
[1745026574755,19.14284376,134.99,133.8,29.29531992]
[1745026575057,9.57142176,134.99,133.8,29.29531992]
[1745026575859,19.14284376,134.99,133.8,29.29531992]
[1745026576154,9.57142176,134.99,133.8,29.29531992]
[1745026576655,19.14284376,134.99,133.8,29.29531992]
[1745026577256,9.57142176,134.99,133.8,29.29531992]
[1745026577658,9.57142176,134.99,133.81,9.571421]
[1745026577856,9.57142176,134.99,133.82,9.31974263]
[1745026578157,19.14284376,134.99,133.82,9.31974263]
[1745026578460,9.57142176,134.99,133.82,9.31974263]
[1745026578968,19.14284276,134.99,133.82,9.31974263]
[1745026579961,9.57142176,134.99,133.82,9.31974263]
[1745026580360,19.14284376,134.99,133.82,9.31974263]
[1745026580658,9.57142176,134.99,133.82,9.31974263]
[1745026583262,19.14284276,134.99,133.82,9.31974263]
[1745026583561,9.57142176,134.99,133.82,9.31974263]
[1745026583966,19.14284276,134.99,133.82,9.31974263]
[1745026584348,19.14284276,134.99,133.82,18.89116363]
[1745026584861,9.57142176,134.99,133.82,18.89116363]
[1745026585862,19.14284376,134.99,133.82,18.89116363]
[1745026586162,9.57142176,134.99,133.82,18.89116363]
[1745026586556,28.46258576,134.99,133.82,18.89116363]
[1745026587162,9.57142176,134.99,133.82,18.89116363]
[1745026587665,19.14284376,134.99,133.82,18.89116363]
[1745026588166,9.57142176,134.99,133.82,18.89116363]
[1745026588465,28.46258576,134.99,133.82,18.89116363]
[1745026589168,9.57142176,134.99,133.82,18.89116363]
[1745026590065,19.14284276,134.99,133.82,18.89116363]
[1745026590866,9.57142176,134.99,133.82,18.89116363]
[1745026592371,19.14284276,134.99,133.82,18.89116363]
[1745026592668,9.57142176,134.99,133.82,18.89116363]
[1745026594169,19.14284376,134.99,133.82,18.89116363]
[1745026595086,9.57142176,134.99,133.82,18.89116363]
[1745026595260,28.46258476,134.99,133.82,18.89116363]
[1745026595577,9.57142176,134.99,133.82,18.89116363]
[1745026596074,19.14284376,134.99,133.82,18.89116363]
[1745026596573,9.57142176,134.99,133.82,18.89116363]
[1745026597174,19.14284276,134.99,133.82,18.89116363]
[1745026597576,9.57142176,134.99,133.82,18.89116363]
[1745026598982,19.14284276,134.99,133.82,18.89116363]
[1745026599179,9.57142176,134.99,133.82,18.89116363]
[1745026600582,19.14284276,134.99,133.82,18.89116363]
[1745026600878,9.57142176,134.99,133.82,18.89116363]
[1745026601180,28.46258576,134.99,133.82,18.89116363]
[1745026604186,9.57142176,134.99,133.82,18.89116363]
[1745026604480,28.46258576,134.99,133.82,18.89116363]
[1745026604781,9.57142176,134.99,133.82,18.89116363]
[1745026605681,19.14284276,134.99,133.82,18.89116363]
[1745026605882,9.57142176,134.99,133.82,18.89116363]
[1745026606187,28.46258476,134.99,133.82,18.89116363]
[1745026606483,9.57142176,134.99,133.82,18.89116363]
[1745026607386,28.46258576,134.99,133.82,18.89116363]
[1745026607686,9.57142176,134.99,133.82,18.89116363]
[1745026610486,19.14284276,134.99,133.82,18.89116363]
[1745026610787,9.57142176,134.99,133.82,18.89116363]
[1745026611586,28.46258476,134.99,133.82,18.89116363]
[1745026611886,9.57142176,134.99,133.82,18.89116363]
[1745026612187,28.46258576,134.99,133.82,18.89116363]
[1745026612889,9.57142176,134.99,133.82,18.89116363]
[1745026613190,28.46258576,134.99,133.82,18.89116363]
[1745026613889,9.57142176,134.99,133.82,18.89116363]
[1745026614188,28.46258576,134.99,133.82,18.89116363]
[1745026619295,28.46258576,134.99,133.82,9.571421]
[1745026619483,28.46258576,134.99,133.83,9.31974263]
[1745026619683,28.46258576,134.99,133.83,28.29715435]
[1745026620182,9.57142176,134.99,133.84,22.270888]
[1745026620392,9.57142176,134.99,133.85,9.31974263]
[1745026621698,19.14284376,134.99,133.85,18.89116463]
[1745026621993,9.57142176,134.99,133.85,18.89116463]
[1745026622180,9.57142176,134.99,133.85,9.31974263]
[1745026622892,19.14284376,134.99,133.85,9.31974263]
[1745026623391,19.14284376,134.99,133.85,28.29715463]
[1745026623693,19.14284376,134.99,133.85,9.31974263]
[1745026624008,19.14284376,134.99,133.85,28.46258563]
[1745026624696,19.14284376,134.99,133.85,9.31974263]
[1745026625993,19.14284376,134.99,133.85,28.29715463]
[1745026626299,19.14284376,134.99,133.85,9.31974263]
[1745026626598,19.14284376,134.99,133.85,28.46258663]
[1745026627298,19.14284376,134.99,133.85,9.31974263]
[1745026628282,9.57142176,134.99,133.85,9.31974263]
[1745026628594,28.54883376,134.99,133.85,9.31974263]
[1745026628896,9.57142176,134.99,133.85,9.31974263]
[1745026629494,19.14284376,134.99,133.85,18.89116463]
[1745026629900,19.14284376,134.99,133.85,9.31974263]
[1745026630196,19.14284376,134.99,133.85,28.29715363]
[1745026630491,9.57142176,134.99,133.85,28.29715363]
[1745026631302,28.71426576,134.99,133.85,28.29715363]
[1745026631597,9.57142176,134.99,133.85,28.29715363]
[1745026631897,31.84065676,134.99,133.85,28.29715363]
[1745026632199,31.84065676,134.99,133.85,9.31974263]
[1745026632400,31.84065676,134.99,133.85,31.58897763]
[1745026632699,9.57142176,134.99,133.85,31.58897763]
[1745026632999,31.84065676,134.99,133.85,31.58897763]
[1745026633297,31.84065676,134.99,133.85,9.31974263]
[1745026633500,31.84065676,134.99,133.83,18.97741172]
[1745026633693,31.84065676,134.99,133.84,9.31974263]
[1745026634097,31.84065676,134.99,133.85,22.272542]
[1745026634300,31.84065676,134.99,133.86,9.31974263]
[1745026634903,31.84065676,134.99,133.87,22.272542]
[1745026635096,31.84065676,134.99,133.88,9.31974263]
[1745026635702,31.84065676,134.99,133.88,31.59228463]
[1745026636101,9.57142176,134.99,133.88,31.59228463]
[1745026636599,31.84396276,134.99,133.88,31.59228463]
[1745026636899,9.57142176,134.99,133.88,31.59228463]
[1745026637200,31.84396376,134.99,133.88,31.59228463]
[1745026640192,9.57142176,134.99,133.88,9.31974263]
[1745026640593,31.84396376,134.99,133.88,31.59228463]
[1745026640906,9.57142176,134.99,133.88,9.31974263]
[1745026641309,31.84396376,134.99,133.88,9.31974263]
[1745026644115,9.57142176,134.99,133.88,9.31974263]
[1745026644415,28.54883276,134.99,133.88,28.29715363]
[1745026644711,9.57142176,134.99,133.88,9.31974263]
[1745026646500,19.14284376,134.99,133.88,9.31974263]
[1745026646702,19.14284376,134.99,133.88,18.63948463]
[1745026646896,19.14284376,134.99,133.88,9.31974263]
[1745026647215,19.14284376,134.99,133.88,27.95922763]
[1745026647412,9.57142176,134.99,133.88,27.95922763]
[1745026647717,28.71426476,134.99,133.88,9.31974263]
[1745026648019,28.71426476,134.99,133.88,18.89116463]
[1745026648519,28.71426476,134.99,133.88,9.31974263]
[1745026648819,18.89116476,134.99,133.88,28.21090663]
[1745026649121,9.57142176,134.99,133.88,28.21090663]
[1745026649926,28.46258676,134.99,133.88,28.21090663]
[1745026653527,9.57142176,134.99,133.88,9.31974263]
[1745026653824,31.85554376,134.99,133.88,22.284122]
[1745026654035,31.85554376,134.99,133.89,9.31974263]
[1745026654615,9.57142176,134.99,133.89,9.31974263]
[1745026654926,28.08102476,134.99,133.89,9.31974263]
[1745026655526,9.57142176,134.99,133.89,9.31974263]
[1745026655824,28.08102476,134.99,133.89,9.31974263]
[1745026656525,9.57142176,134.99,133.89,9.31974263]
[1745026656825,28.08102476,134.99,133.89,9.31974263]
[1745026657526,9.57142176,134.99,133.89,9.31974263]
[1745026658322,19.14284376,134.99,133.89,9.31974263]
[1745026658726,9.57142176,134.99,133.89,9.31974263]
[1745026658918,28.08102476,134.99,133.89,9.31974263]
[1745026659629,9.57142176,134.99,133.89,9.31974263]
[1745026659928,28.08102476,134.99,133.89,9.31974263]
[1745026660728,9.57142176,134.99,133.89,9.31974263]
[1745026661421,28.08102476,134.99,133.89,9.31974263]
[1745026661821,9.57142176,134.99,133.89,9.31974263]
[1745026662036,28.08102476,134.99,133.89,9.31974263]
[1745026662733,9.57142176,134.99,133.89,9.31974263]
[1745026663038,28.08102476,134.99,133.89,9.31974263]
[1745026663731,9.57142176,134.99,133.89,9.31974263]
[1745026664226,19.14284376,134.99,133.89,9.31974263]
[1745026664830,9.57142176,134.99,133.89,9.31974263]
[1745026665016,28.08102476,134.99,133.89,9.31974263]
[1745026665814,9.57142176,134.99,133.88,18.509603]
[1745026666131,28.08102576,134.99,133.88,9.571422]
[1745026666333,28.08102576,134.99,133.88,18.89116463]
[1745026666731,9.57142176,134.99,133.88,18.89116463]
[1745026666932,9.57142176,134.99,133.88,9.31974263]
[1745026667127,28.46258676,134.99,133.88,18.89116463]
[1745026667732,9.57142176,134.99,133.88,18.89116463]
[1745026667923,9.57142176,134.99,133.88,9.31974263]
[1745026668117,28.46258576,134.99,133.88,9.31974263]
[1745026668326,28.46258576,134.99,133.88,18.89116463]
[1745026668733,9.57142176,134.99,133.88,18.89116463]
[1745026669044,28.46258676,134.99,133.88,9.31974263]
[1745026669232,28.46258676,134.99,133.88,18.89116463]
[1745026669836,9.57142176,134.99,133.88,18.89116463]
[1745026670131,9.57142176,134.99,133.88,9.31974263]
[1745026670336,19.14284376,134.99,133.88,9.31974263]
[1745026670527,19.14284376,134.99,133.88,18.89116463]
[1745026670719,9.57142176,134.99,133.88,18.89116463]
[1745026670917,9.57142176,134.99,133.88,9.31974263]
[1745026671120,19.14284376,134.99,133.88,9.31974263]
[1745026671419,19.14284376,134.99,133.88,18.89116363]
[1745026671635,19.14284376,134.99,133.89,9.31974263]
[1745026671833,9.57142176,134.99,133.89,9.31974263]
[1745026672021,19.14284276,134.99,133.89,9.31974263]
[1745026672336,19.14284276,134.99,133.88,27.9412562]
[1745026672529,19.14284276,134.99,133.88,18.3698352]
[1745026672731,9.57142176,134.99,133.88,18.3698352]
[1745026673036,27.94125676,134.99,133.88,36.7396702]
[1745026673331,27.94125676,134.99,133.88,18.3698352]
[1745026673641,31.86713776,134.99,133.88,40.6655502]
[1745026673936,31.86713776,134.99,133.88,18.3698352]
[1745026674335,9.57142176,134.99,133.88,18.3698352]
[1745026674638,27.94125676,134.99,133.88,18.3698352]
[1745026675434,9.57142176,134.99,133.88,18.3698352]
[1745026675633,27.94125776,134.99,133.88,37.2609992]
[1745026675938,27.94125776,134.99,133.88,18.3698352]
[1745026676242,27.94125776,134.99,133.88,40.6655502]
[1745026676440,9.57142176,134.99,133.88,40.6655502]
[1745026676638,31.86713776,134.99,133.88,40.6655502]
[1745026676941,31.86713776,134.99,133.88,18.3698352]
[1745026677240,31.86713776,134.99,133.88,40.6655512]
[1745026677540,9.57142176,134.99,133.88,40.6655512]
[1745026677945,19.14284276,134.99,133.88,18.3698352]
[1745026678241,19.14284276,134.99,133.88,27.9412562]
[1745026678443,9.57142176,134.99,133.88,27.9412562]
[1745026678652,28.71426476,134.99,133.88,27.9412562]
[1745026678945,9.57142176,134.99,133.88,18.3698352]
[1745026679243,31.86713676,134.99,133.88,40.6655512]
[1745026679543,31.86713676,134.99,133.88,18.3698352]
[1745026679845,31.86713676,134.99,133.88,40.6655502]
[1745026680039,9.57142176,134.99,133.88,49.98529283]
[1745026680344,9.57142176,134.99,133.88,27.68957783]
[1745026680643,19.14284376,134.99,133.88,37.26099983]
[1745026680944,19.14284376,134.99,133.88,27.68957783]
[1745026681243,19.14284376,134.99,133.88,46.83242183]
[1745026681546,9.57142176,134.99,133.88,27.68957783]
[1745026681947,19.14284376,134.99,133.88,27.68957783]
[1745026682445,19.14284376,134.99,133.88,46.83242183]
[1745026682739,19.14284376,134.99,133.88,27.68957783]
[1745026683045,9.57142176,134.99,133.88,27.68957783]
[1745026683345,28.71426576,134.99,133.88,46.83242183]
[1745026683646,9.57142176,134.99,133.88,27.68957783]
[1745026683942,31.86713676,134.99,133.88,27.68957783]
[1745026684149,31.86713676,134.99,133.88,49.98529283]
[1745026684548,31.86713676,134.99,133.88,27.68957783]
[1745026684850,9.57142176,134.99,133.89,9.31974263]
[1745026685148,31.86547976,134.99,133.89,9.31974263]
[1745026685647,9.57142176,134.99,133.89,9.31974263]
[1745026685948,27.94125676,134.99,133.89,9.31974263]
[1745026686751,9.57142176,134.99,133.89,9.31974263]
[1745026687047,27.94125676,134.99,133.89,9.31974263]
[1745026687749,9.57142176,134.99,133.89,9.31974263]
[1745026687951,31.86548076,134.99,133.89,9.31974263]
[1745026688753,9.57142176,134.99,133.89,9.31974263]
[1745026689052,31.86548076,134.99,133.89,9.31974263]
[1745026689655,9.57142176,134.99,133.89,9.31974263]
[1745026689957,31.86548076,134.99,133.89,9.31974263]
[1745026690857,9.57142176,134.99,133.89,9.31974263]
[1745026691059,31.86548076,134.99,133.89,9.31974263]
[1745026691653,9.57142176,134.99,133.89,9.31974263]
[1745026691964,27.94125676,134.99,133.89,9.31974263]
[1745026692757,9.57142176,134.99,133.89,9.31974263]
[1745026692957,27.94125676,134.99,133.89,9.31974263]
[1745026693660,9.57142176,134.99,133.89,9.31974263]
[1745026693960,31.86548076,134.99,133.89,9.31974263]
[1745026694660,9.57142176,134.99,133.89,9.31974263]
[1745026697054,27.94125676,134.99,133.89,9.31974263]
[1745026697660,9.57142176,134.99,133.89,9.31974263]
[1745026697963,27.94125676,134.99,133.89,9.31974263]
[1745026698864,9.57142176,134.99,133.89,9.31974263]
[1745026699080,31.86051176,134.99,133.89,9.31974263]
[1745026699764,9.57142176,134.99,133.89,9.31974263]
[1745026700264,19.14284276,134.99,133.89,9.31974263]
[1745026700760,9.57142176,134.99,133.89,9.31974263]
[1745026701070,27.94125776,134.99,133.89,9.31974263]
[1745026701458,9.57142176,134.99,133.89,9.31974263]
[1745026701658,27.94125676,134.99,133.89,9.31974263]
[1745026702366,9.57142176,134.99,133.89,9.31974263]
[1745026702662,27.94125676,134.99,133.89,9.31974263]
[1745026703357,9.57142176,134.99,133.89,9.31974263]
[1745026703666,31.86051176,134.99,133.89,9.31974263]
[1745026704367,9.57142176,134.99,133.89,9.31974263]
[1745026704864,19.14284276,134.99,133.89,9.31974263]
[1745026705466,9.57142176,134.99,133.89,9.31974263]
[1745026705669,27.94125676,134.99,133.89,9.31974263]
[1745026705968,9.57142176,134.99,133.89,9.31974263]
[1745026706358,31.85719976,134.99,133.89,9.31974263]
[1745026707071,9.57142176,134.99,133.89,9.31974263]
[1745026707369,27.94125676,134.99,133.89,9.31974263]
[1745026707965,9.57142176,134.99,133.89,9.31974263]
[1745026708569,31.85719976,134.99,133.89,9.31974263]
[1745026708971,9.57142176,134.99,133.89,9.31974263]
[1745026709372,19.14284376,134.99,133.89,9.31974263]
[1745026709972,9.57142176,134.99,133.89,9.31974263]
[1745026710354,27.94125676,134.99,133.89,9.31974263]
[1745026711167,9.57142176,134.99,133.89,9.31974263]
[1745026711472,31.85719976,134.99,133.89,9.31974263]
[1745026711973,9.57142176,134.99,133.89,9.31974263]
[1745026712271,27.94125676,134.99,133.89,9.31974263]
[1745026713070,9.57142176,134.99,133.89,9.31974263]
[1745026713257,27.94125676,134.99,133.89,9.31974263]
[1745026713959,9.57142176,134.99,133.89,9.31974263]
[1745026714374,19.14284376,134.99,133.89,9.31974263]
[1745026715066,9.57142176,134.99,133.89,9.31974263]
[1745026715366,28.71426576,134.99,133.89,9.31974263]
[1745026715972,9.57142176,134.99,133.89,9.31974263]
[1745026716368,27.94125776,134.99,133.89,9.31974263]
[1745026717074,9.57142176,134.99,133.89,9.31974263]
[1745026717374,31.85223376,134.99,133.89,9.31974263]
[1745026718154,9.57142176,134.99,133.89,9.31974263]
[1745026718352,31.85057976,134.99,133.89,9.31974263]
[1745026719065,9.57142176,134.99,133.89,9.31974263]
[1745026719261,31.85554476,134.99,133.89,9.31974263]
[1745026719977,9.57142176,134.99,133.89,9.31974263]
[1745026720280,27.94125676,134.99,133.89,9.31974263]
[1745026720978,9.57142176,134.99,133.89,9.31974263]
[1745026721277,31.85223476,134.99,133.89,9.31974263]
[1745026722078,9.57142176,134.99,133.89,9.31974263]
[1745026722582,19.14284276,134.99,133.89,9.31974263]
[1745026723082,9.57142176,134.99,133.89,9.31974263]
[1745026723262,27.94125676,134.99,133.89,9.31974263]
[1745026723579,9.57142176,134.99,133.89,9.31974263]
[1745026723881,27.94125776,134.99,133.89,9.31974263]
[1745026724579,9.57142176,134.99,133.89,9.31974263]
[1745026724878,27.94125676,134.99,133.89,9.31974263]
[1745026725682,9.57142176,134.99,133.89,9.31974263]
[1745026725880,31.85057976,134.99,133.89,9.31974263]
[1745026726673,9.57142176,134.99,133.89,9.31974263]
[1745026726871,27.94125676,134.99,133.89,9.31974263]
[1745026727574,9.57142176,134.99,133.89,9.31974263]
[1745026727960,31.85057976,134.99,133.89,9.31974263]
[1745026728682,9.57142176,134.99,133.89,9.31974263]
[1745026728883,31.85388876,134.99,133.89,9.31974263]
[1745026729686,9.57142176,134.99,133.89,9.31974263]
[1745026729986,31.85223376,134.99,133.89,9.31974263]
[1745026730662,9.57142176,134.99,133.89,9.31974263]
[1745026730863,27.94125676,134.99,133.89,9.31974263]
[1745026732085,9.57142176,134.99,133.89,9.31974263]
[1745026732487,31.85223376,134.99,133.89,9.31974263]
[1745026732788,9.57142176,134.99,133.89,9.31974263]
[1745026733171,27.94125676,134.99,133.89,9.31974263]
[1745026733875,9.57142176,134.99,133.89,9.31974263]
[1745026734488,19.14284376,134.99,133.89,9.31974263]
[1745026734988,9.57142176,134.99,133.9,0.22106891]
[1745026735287,27.94125676,134.99,133.91,9.31974263]
[1745026735587,27.94125676,134.99,133.91,18.89116363]
[1745026735774,9.57142176,134.99,133.91,18.89116363]
[1745026735973,9.57142176,134.99,133.91,9.31974263]
[1745026736173,28.46258576,134.99,133.91,18.89116463]
[1745026736891,9.57142176,134.99,133.91,9.31974263]
[1745026737189,9.57142176,134.99,133.91,28.21090763]
[1745026737790,28.46258676,134.99,133.91,28.21090763]
[1745026737990,28.46258676,134.99,133.91,9.31974263]
[1745026738193,9.57142176,134.99,133.91,31.60055463]
[1745026738376,27.94125676,134.99,133.91,31.60055463]
[1745026738893,27.94125676,134.99,133.91,9.31974263]
[1745026739090,9.57142176,134.99,133.91,9.31974263]
[1745026739281,9.57142176,134.99,133.91,31.60055463]
[1745026739493,27.94125676,134.99,133.91,31.60055463]
[1745026739890,27.94125676,134.99,133.91,9.31974263]
[1745026740193,9.57142176,134.99,133.91,31.60055563]
[1745026740893,9.57142176,134.99,133.91,9.31974263]
[1745026741191,27.94125676,134.99,133.91,18.89116363]
[1745026741597,9.57142176,134.99,133.91,18.89116363]
[1745026741774,28.46258576,134.99,133.91,18.89116363]
[1745026741978,28.46258576,134.99,133.91,9.31974263]
[1745026742291,28.46258576,134.99,133.91,28.21090563]
[1745026742493,9.57142176,134.99,133.91,28.21090563]
[1745026742893,9.57142176,134.99,133.91,9.31974263]
[1745026743093,19.14284376,134.99,133.91,9.31974263]
[1745026743294,19.14284376,134.99,133.91,18.89116463]
[1745026743593,9.57142176,134.99,133.91,18.89116463]
[1745026743793,28.46258676,134.99,133.91,18.89116463]
[1745026744397,28.46258676,134.99,133.91,9.31974263]
[1745026744693,9.57142176,134.99,133.91,28.21090763]
[1745026744891,27.94125676,134.99,133.91,28.21090763]
[1745026745095,27.94125676,134.99,133.91,9.31974263]
[1745026745294,27.94125676,134.99,133.91,31.59890063]
[1745026745594,9.57142176,134.99,133.91,31.59890063]
[1745026745793,31.85388876,134.99,133.91,31.59890063]
[1745026746096,31.85388876,134.99,133.91,9.31974263]
[1745026746486,31.85388876,134.99,133.91,31.60221063]
[1745026747098,9.57142176,134.99,133.91,9.31974263]
[1745026747598,19.14284376,134.99,133.91,9.31974263]
[1745026747984,9.57142176,134.99,133.91,9.31974263]
[1745026748184,28.71426576,134.99,133.91,28.46258663]
[1745026748499,28.71426576,134.99,133.91,9.31974263]
[1745026748901,9.57142176,134.99,133.91,9.31974263]
[1745026749201,27.94125676,134.99,133.91,9.31974263]
[1745026749804,27.94125676,134.99,133.91,31.60055563]
[1745026749991,9.57142176,134.99,133.92,9.31974263]
[1745026750387,31.85223476,134.99,133.92,9.31974263]
[1745026751201,9.57142176,134.99,133.92,9.31974263]
[1745026751581,19.14284376,134.99,133.92,9.31974263]
[1745026751902,9.57142176,134.99,133.92,9.31974263]
[1745026752208,27.94125676,134.99,133.92,9.31974263]
[1745026752905,9.57142176,134.99,133.92,9.31974263]
[1745026753702,27.94125776,134.99,133.92,9.31974263]
[1745026754108,9.57142176,134.99,133.92,9.31974263]
[1745026754304,27.94125676,134.99,133.92,9.31974263]
[1745026755107,9.57142176,134.99,133.92,9.31974263]
[1745026755305,27.94125776,134.99,133.92,9.31974263]
[1745026756109,9.57142176,134.99,133.92,9.31974263]
[1745026756309,27.94125676,134.99,133.92,9.31974263]
[1745026757707,9.57142176,134.99,133.92,9.31974263]
[1745026757886,27.94125676,134.99,133.92,9.31974263]
[1745026758211,9.57142176,134.99,133.92,9.31974263]
[1745026758611,27.94125776,134.99,133.92,9.31974263]
[1745026759301,9.57142176,134.99,133.92,9.31974263]
[1745026759494,27.94125676,134.99,133.92,9.31974263]
[1745026760207,9.57142176,134.99,133.92,9.31974263]
[1745026760511,27.94125676,134.99,133.92,9.31974263]
[1745026761216,9.57142176,134.99,133.92,9.31974263]
[1745026761597,27.94125676,134.99,133.92,9.31974263]
[1745026762213,9.57142176,134.99,133.92,9.31974263]
[1745026762904,19.14284376,134.99,133.92,9.31974263]
[1745026763309,9.57142176,134.99,133.92,9.31974263]
[1745026763606,27.94125776,134.99,133.92,9.31974263]
[1745026764312,9.57142176,134.99,133.92,9.31974263]